bitfinex/quotes_SOLUSD_20250802
["timestamp","ask_amount","ask_price","bid_price","bid_amount"]
[1754131986923,6.1279057,163.13,163.12,5.4364012]
[1754131989213,6.12162611,163.13,163.12,5.4364012]
[1754131991713,6.83162611,163.13,163.12,5.4364012]
[1754131992106,6.83162611,163.13,163.08,0.7]
[1754131992302,0.03,163.13,163.12,5.4364012]
[1754131992507,1.56569035,163.13,163.12,5.4364012]
[1754131992721,1.56569035,163.13,163.12,11.5728024]
[1754131993023,0.03,163.13,163.12,11.5728024]
[1754131993585,0.03,163.13,163.12,14.0292764]
[1754131994890,0.03,163.14,163.12,14.64232201]
[1754131995212,0.03,163.14,163.13,6.1364012]
[1754131996224,0.03,163.14,163.13,26.7]
[1754131996525,0.03,163.14,163.13,32.1364012]
[1754132003035,0.03,163.14,163.13,34.5927242]
[1754132004918,0.74,163.2,163.13,34.5927242]
[1754132005234,0.74,163.2,163.19,5.4364012]
[1754132009326,0.03,163.2,163.19,5.4364012]
[1754132009833,0.03,163.2,163.19,6.1364012]
[1754132010038,0.03,163.2,163.19,5.4364012]
[1754132010932,0.03,163.2,163.19,6.0964012]
[1754132015752,0.03,163.2,163.19,11.5328024]
[1754132017452,0.03,163.2,163.19,5.4364012]
[1754132019633,0.71,163.2,163.19,5.4364012]
[1754132019836,0.71,163.2,163.18,5.4364012]
[1754132020863,0.71,163.2,163.17,5.4364012]
[1754132021059,0.71,163.2,163.12,5.4964012]
[1754132021060,0.71,163.2,163.16,5.4364012]
[1754132021249,0.71,163.2,163.17,5.4364012]
[1754132022937,0.71,163.2,163.12,53.9728022]
[1754132023172,6.1464012,163.2,163.15,5.4364012]
[1754132023362,5.4364012,163.19,163.15,5.4364012]
[1754132023538,0.68,163.18,163.15,5.4364012]
[1754132023936,6.1164012,163.18,163.12,43.1]
[1754132024140,0.68,163.17,163.14,5.4364012]
[1754132024368,0.68,163.17,163.15,5.4364012]
[1754132026174,0.68,163.17,163.14,5.4364012]
[1754132026566,0.68,163.17,163.13,5.4364012]
[1754132026874,6.1164012,163.17,163.13,5.4364012]
[1754132027059,5.4364012,163.17,163.13,5.4364012]
[1754132027258,0.68,163.16,163.13,5.4364012]
[1754132028962,0.68,163.16,163.12,0.06]
[1754132029162,6.1164012,163.16,163.12,5.4964012]
[1754132029378,0.68,163.15,163.12,5.4964012]
[1754132029547,5.4364012,163.17,163.13,5.4364012]
[1754132029743,0.68,163.16,163.14,5.4364012]
[1754132030156,43.72,163.18,163.15,5.4364012]
[1754132030374,2.21531845,163.17,163.15,5.4364012]
[1754132030571,43.04,163.18,163.15,5.4364012]
[1754132030745,0.68,163.16,163.15,5.4364012]
[1754132033173,0.68,163.16,163.14,5.4364012]
[1754132033480,43.04,163.18,163.15,5.4964012]
[1754132033686,43.04,163.18,163.17,5.4364012]
[1754132033871,49.13022109,163.18,163.17,5.4364012]
[1754132034176,44.57515892,163.18,163.17,5.4364012]
[1754132034492,44.5751383,163.18,163.17,5.4364012]
[1754132034996,44.5751383,163.18,163.15,0.72]
[1754132035289,43.04,163.18,163.17,5.4364012]
[1754132035499,43.72,163.18,163.17,5.4364012]
[1754132036390,45.2551383,163.18,163.16,5.4364012]
[1754132036589,43.72,163.18,163.16,5.4364012]
[1754132036754,43.04,163.18,163.17,5.4364012]
[1754132036960,0.71,163.2,163.17,5.4364012]
[1754132037261,0.71,163.2,163.19,5.4364012]
[1754132037478,6.80537008,163.2,163.19,5.4364012]
[1754132037786,6.12537008,163.2,163.19,5.4364012]
[1754132038103,0.03,163.2,163.19,6.0964012]
[1754132041867,0.03,163.2,163.19,11.5328024]
[1754132044280,0.03,163.22,163.19,11.5328024]
[1754132044483,0.03,163.22,163.21,5.4364012]
[1754132044897,0.03,163.22,163.21,6.1364012]
[1754132048721,4.13638383,163.28,163.21,6.1364012]
[1754132048722,0.74,163.28,163.21,6.1364012]
[1754132049007,0.03,163.28,163.27,5.4364012]
[1754132049518,0.03,163.28,163.27,6.1364012]
[1754132049725,0.03,163.28,163.27,5.4364012]
[1754132050693,0.03,163.28,163.27,6.1364012]
[1754132051775,0.03,163.28,163.27,11.5728024]
[1754132053303,0.1,163.3,163.27,11.5728024]
[1754132053486,0.1,163.3,163.29,5.4364012]
[1754132054010,0.1,163.3,163.29,6.1364012]
[1754132055511,0.1,163.3,163.29,5.4364012]
[1754132056318,0.1,163.3,163.29,6.1364012]
[1754132058724,0.1,163.3,163.29,49.1364012]
[1754132059786,0.1,163.3,163.29,48.4364012]
[1754132060130,0.1,163.3,163.29,138.0364012]
[1754132061931,0.1,163.3,163.29,138.7364012]
[1754132063206,0.1,163.3,163.29,138.0364012]
[1754132064722,0.81,163.3,163.29,138.0364012]
[1754132064906,0.1,163.3,163.29,138.0364012]
[1754132065822,0.81,163.3,163.29,138.0364012]
[1754132066324,0.81,163.3,163.29,48.4364012]
[1754132068401,0.81,163.3,163.29,5.4364012]
[1754132069803,0.1,163.3,163.29,5.4364012]
[1754132071713,0.1,163.3,163.29,6.1264012]
[1754132074442,0.1,163.31,163.29,6.1264012]
[1754132074610,0.1,163.31,163.3,48.4164012]
[1754132075019,0.1,163.31,163.3,49.1064012]
[1754132075342,0.66,163.36,163.3,49.1064012]
[1754132075511,0.66,163.36,163.35,5.4364012]
[1754132078437,0.1,163.37,163.35,5.4364012]
[1754132078649,0.1,163.37,163.36,5.4364012]
[1754132079156,0.76,163.37,163.36,5.4364012]
[1754132079538,0.1,163.37,163.36,10.8728024]
[1754132080634,0.1,163.37,163.36,11.5628024]
[1754132081141,0.1,163.37,163.36,10.8728024]
[1754132083043,0.1,163.37,163.36,11.5628024]
[1754132084268,0.1,163.37,163.36,28.34748637]
[1754132084772,0.66,163.41,163.36,28.34748637]
[1754132085054,0.66,163.44,163.4,5.4364012]
[1754132085231,2.19285489,163.43,163.38,0.69]
[1754132085432,33.00165701,163.45,163.42,5.4364012]
[1754132085632,0.66,163.42,163.38,0.69]
[1754132085861,0.66,163.41,163.38,0.69]
[1754132086057,0.66,163.4,163.37,42.96]
[1754132086757,0.66,163.4,163.39,5.4364012]
[1754132087259,0.66,163.4,163.38,5.4364012]
[1754132089160,0.66,163.4,163.35,42.96]
[1754132089363,0.66,163.4,163.38,5.4364012]
[1754132090230,0.66,163.4,163.39,5.4364012]
[1754132090429,6.75491866,163.4,163.39,5.4364012]
[1754132090955,6.75491866,163.4,163.35,42.96]
[1754132091274,5.4364012,163.44,163.39,5.4364012]
[1754132091452,8.37920891,163.43,163.39,5.4364012]
[1754132091644,6.09717392,163.42,163.39,5.4364012]
[1754132091953,6.75717392,163.41,163.39,5.4364012]
[1754132092173,6.75717392,163.4,163.39,5.4364012]
[1754132093241,6.75717392,163.4,163.33,26.0]
[1754132093459,6.75717392,163.4,163.3,106.38468397]
[1754132093460,9.04173548,163.39,163.35,5.4364012]
[1754132093681,6.75717392,163.38,163.36,5.4364012]
[1754132093983,6.75717392,163.37,163.35,5.4364012]
[1754132094171,6.09717392,163.36,163.35,5.4364012]
[1754132094373,6.75717392,163.36,163.35,5.4364012]
[1754132095991,6.75717392,163.36,163.34,5.4364012]
[1754132096287,6.76815726,163.35,163.33,5.4364012]
[1754132096490,6.76920939,163.34,163.33,5.4364012]
[1754132097376,6.76920939,163.34,163.28,32.1864012]
[1754132097582,2.19357256,163.33,163.31,5.4364012]
[1754132097890,0.66,163.32,163.28,0.06]
[1754132098062,0.66,163.32,163.31,5.4364012]
[1754132098390,6.76955024,163.32,163.29,5.4364012]
[1754132098680,0.66,163.31,163.29,5.4364012]
[1754132099590,0.66,163.3,163.28,0.06]
[1754132099772,0.66,163.3,163.29,5.4364012]
[1754132100493,0.66,163.3,163.28,5.4964012]
[1754132100991,0.66,163.3,163.28,0.06]
[1754132100992,26.66,163.3,163.28,0.06]
[1754132101171,0.66,163.3,163.28,0.06]
[1754132101372,31.4364012,163.33,163.29,5.4364012]
[1754132101689,26.0,163.3,163.29,5.4364012]
[1754132101989,26.72,163.3,163.29,5.4364012]
[1754132102184,26.72,163.3,163.28,5.4964012]
[1754132102360,0.72,163.29,163.28,0.06]
[1754132102560,0.72,163.29,163.28,5.4964012]
[1754132103185,0.72,163.31,163.28,5.4964012]
[1754132103395,0.72,163.31,163.3,5.4364012]
[1754132105468,0.72,163.31,163.28,0.06]
[1754132106293,0.72,163.31,163.28,5.4964012]
[1754132106673,32.1564012,163.31,163.28,0.06]
[1754132106866,0.72,163.3,163.28,0.06]
[1754132108308,6.1564012,163.3,163.28,0.06]
[1754132108703,0.72,163.29,163.28,0.06]
[1754132109492,75.1164012,163.29,163.28,0.06]
[1754132109895,69.68,163.29,163.28,0.06]
[1754132116012,75.1164012,163.29,163.28,0.06]
[1754132116911,97.98860162,163.29,163.28,0.06]
[1754132118313,91.90108517,163.29,163.28,0.06]
[1754132119109,86.46468397,163.29,163.28,0.06]
[1754132119325,91.90108517,163.29,163.28,0.06]
[1754132119696,97.98653878,163.29,163.28,0.06]
[1754132120421,91.90108517,163.29,163.28,0.06]
[1754132124003,91.20108517,163.29,163.28,0.06]
[1754132124206,91.92108517,163.29,163.28,0.06]
[1754132124394,43.50468397,163.29,163.28,0.06]
[1754132124603,68.98,163.29,163.28,0.06]
[1754132131727,69.63,163.29,163.28,0.06]
[1754132131932,75.0664012,163.29,163.28,0.06]
[1754132132315,69.63,163.29,163.28,0.06]
[1754132133014,68.98,163.29,163.28,0.06]
[1754132133211,26.0,163.29,163.28,5.4964012]
[1754132135239,26.0,163.29,163.28,0.06]
[1754132135535,26.0,163.29,163.28,5.4964012]
[1754132135827,26.0,163.29,163.28,0.06]
[1754132136038,26.0,163.29,163.28,5.4964012]
[1754132136606,26.65,163.29,163.28,0.06]
[1754132137025,32.75174351,163.29,163.28,0.06]
[1754132138405,54.97282868,163.29,163.28,0.06]
[1754132138606,59.09004918,163.29,163.28,0.06]
[1754132138817,59.09654694,163.29,163.28,0.06]
[1754132139926,75.06824127,163.29,163.28,0.06]
[1754132140343,75.06824127,163.29,163.28,5.4964012]
[1754132141157,75.06824127,163.29,163.28,0.06]
[1754132141312,75.71824127,163.29,163.28,0.06]
[1754132143306,79.84638013,163.29,163.28,0.06]
[1754132144044,102.0674653,163.29,163.28,0.06]
[1754132145454,96.6310641,163.29,163.28,0.06]
[1754132145633,102.0674653,163.29,163.28,0.06]
[1754132147340,107.5038665,163.29,163.28,0.06]
[1754132147535,102.0674653,163.29,163.28,0.06]
[1754132147764,107.51601573,163.29,163.28,0.06]
[1754132148044,16.78468397,163.28,163.26,0.06]
[1754132148251,75.42961453,163.27,163.26,0.06]
[1754132148409,76.07961453,163.27,163.26,0.06]
[1754132148810,33.11961453,163.27,163.26,0.06]
[1754132149016,96.64321333,163.27,163.26,0.06]
[1754132150121,102.07961453,163.27,163.26,0.06]
[1754132150540,79.20852936,163.27,163.26,0.06]
[1754132151242,10.24852936,163.27,163.26,6.1664012]
[1754132151436,53.20852936,163.27,163.26,6.1664012]
[1754132152031,49.0803905,163.27,163.26,6.1664012]
[1754132153671,49.0803905,163.27,163.26,5.4964012]
[1754132153964,49.0803905,163.27,163.26,0.06]
[1754132154278,53.20764554,163.27,163.26,0.06]
[1754132154565,49.0803905,163.27,163.26,5.4964012]
[1754132155446,49.0803905,163.27,163.26,6.1664012]
[1754132155834,49.0803905,163.27,163.26,5.4964012]
[1754132156659,49.0803905,163.27,163.26,0.06]
[1754132156849,49.0803905,163.27,163.26,5.4964012]
[1754132157432,49.0803905,163.27,163.26,6.1664012]
[1754132159146,49.0803905,163.27,163.26,5.4964012]
[1754132159748,49.08030231,163.27,163.26,5.4964012]
[1754132160668,72.00138748,163.27,163.26,0.06]
[1754132160843,76.12830081,163.27,163.26,0.06]
[1754132161244,79.32521021,163.27,163.26,0.06]
[1754132161666,79.32530598,163.27,163.26,0.06]
[1754132162754,30.92890478,163.27,163.26,0.06]
[1754132162957,79.32530598,163.27,163.26,0.06]
[1754132163165,36.24731141,163.27,163.26,0.06]
[1754132163339,79.20731141,163.27,163.26,0.06]
[1754132163663,79.90731141,163.27,163.26,0.06]
[1754132164165,79.20731141,163.27,163.26,0.06]
[1754132164468,79.90731141,163.27,163.26,0.06]
[1754132164639,79.90588471,163.27,163.26,0.06]
[1754132168263,36.24588471,163.27,163.26,5.4964012]
[1754132168573,79.20588471,163.27,163.26,6.1964012]
[1754132168870,75.07897138,163.27,163.26,6.1964012]
[1754132169554,75.07897138,163.27,163.26,5.4964012]
[1754132171561,49.07897138,163.27,163.26,5.4964012]
[1754132171868,49.07897138,163.27,163.26,6.1964012]
[1754132173143,0.03,163.28,163.26,6.1964012]
[1754132173464,0.03,163.28,163.27,5.4364012]
[1754132173778,6.15087399,163.28,163.27,5.4364012]
[1754132174248,49.11087399,163.28,163.27,5.4364012]
[1754132175490,49.11087399,163.28,163.27,6.1364012]
[1754132175656,4.61686138,163.28,163.27,6.1364012]
[1754132175849,0.03,163.28,163.27,6.1364012]
[1754132176075,0.03,163.28,163.27,11.5728024]
[1754132177678,0.03,163.28,163.26,0.06]
[1754132177887,0.03,163.28,163.26,5.4964012]
[1754132178202,49.77823508,163.27,163.26,0.06]
[1754132179280,49.07823508,163.27,163.26,5.4964012]
[1754132179995,42.96,163.27,163.26,5.4964012]
[1754132180568,43.66,163.27,163.26,5.4964012]
[1754132180779,49.07869669,163.27,163.26,5.4964012]
[1754132181596,42.96,163.27,163.26,5.4964012]
[1754132182711,43.66,163.27,163.26,5.4964012]
[1754132183007,49.77971323,163.27,163.26,5.4964012]
[1754132184045,49.77971323,163.27,163.26,0.06]
[1754132184333,49.77971323,163.27,163.26,5.4964012]
[1754132184535,49.77971323,163.27,163.26,0.06]
[1754132185443,53.90658098,163.27,163.26,0.06]
[1754132186858,59.34298218,163.27,163.26,0.06]
[1754132189053,53.90695375,163.27,163.26,0.06]
[1754132191452,53.90697437,163.27,163.26,0.06]
[1754132194183,49.78010662,163.27,163.26,0.06]
[1754132194461,53.911502,163.27,163.26,0.06]
[1754132196535,53.211502,163.27,163.26,0.06]
[1754132196848,53.211502,163.27,163.26,6.1464012]
[1754132196849,6.1223121,163.27,163.26,6.1464012]
[1754132197049,49.0823121,163.27,163.26,6.1464012]
[1754132197250,49.0823121,163.27,163.26,5.4964012]
[1754132199464,49.0823121,163.27,163.26,0.06]
[1754132199643,49.0823121,163.27,163.26,5.4964012]
[1754132200047,49.0823121,163.27,163.26,6.1464012]
[1754132200253,6.1223121,163.27,163.26,6.1464012]
[1754132200448,6.12246467,163.27,163.26,6.1464012]
[1754132200960,4.58805612,163.27,163.26,6.1464012]
[1754132201459,0.03,163.28,163.26,6.1464012]
[1754132201767,0.03,163.28,163.27,6.0864012]
[1754132202071,4.61711291,163.28,163.27,6.0864012]
[1754132202362,4.61711291,163.28,163.27,5.4364012]
[1754132202553,0.03,163.28,163.27,11.5228024]
[1754132203074,0.03,163.3,163.27,11.5228024]
[1754132203259,0.03,163.3,163.29,5.4364012]
[1754132203452,0.03,163.3,163.29,6.0864012]
[1754132207265,4.5803411,163.33,163.29,6.0864012]
[1754132207469,42.96,163.34,163.32,5.4364012]
[1754132207638,42.96,163.34,163.33,5.4364012]
[1754132207844,9.94606275,163.36,163.33,5.4364012]
[1754132208143,4.57535819,163.35,163.32,0.65]
[1754132208366,0.69,163.35,163.3,0.65]
[1754132208765,9.94606275,163.36,163.3,0.65]
[1754132209156,9.94606275,163.36,163.35,5.4364012]
[1754132209356,16.05127667,163.36,163.35,5.4364012]
[1754132209651,16.74127667,163.36,163.35,5.4364012]
[1754132210303,15.2078292,163.36,163.35,5.4364012]
[1754132211685,10.63606275,163.36,163.35,5.4364012]
[1754132212063,16.73920212,163.36,163.35,5.4364012]
[1754132212791,16.73920212,163.36,163.33,5.4364012]
[1754132212972,5.25966773,163.35,163.32,5.4364012]
[1754132213173,43.63,163.34,163.33,5.4364012]
[1754132213773,43.63,163.34,163.28,121.0364012]
[1754132213974,42.94,163.34,163.33,5.4364012]
[1754132214493,43.63,163.34,163.33,5.4364012]
[1754132215183,49.73202176,163.34,163.33,5.4364012]
[1754132215591,48.19837685,163.34,163.33,5.4364012]
[1754132215771,48.19837685,163.34,163.31,5.4364012]
[1754132215971,48.19837685,163.34,163.3,5.4364012]
[1754132215972,5.25801208,163.33,163.3,5.4364012]
[1754132216180,5.25778737,163.32,163.29,5.4364012]
[1754132216455,43.63,163.31,163.29,5.4364012]
[1754132216712,0.69,163.3,163.29,5.4364012]
[1754132217508,0.69,163.3,163.28,5.4364012]
[1754132218198,42.94,163.31,163.29,5.4364012]
[1754132218402,42.94,163.31,163.3,5.4364012]
[1754132218569,43.63,163.31,163.3,5.4364012]
[1754132221478,43.63,163.31,163.29,5.4364012]
[1754132221672,0.66,163.3,163.26,0.06]
[1754132221872,42.94,163.31,163.27,5.4364012]
[1754132222077,0.66,163.3,163.28,5.4364012]
[1754132222692,0.66,163.32,163.29,5.4364012]
[1754132222900,42.94,163.3,163.26,0.72]
[1754132223201,42.94,163.3,163.27,0.66]
[1754132223401,42.94,163.3,163.29,5.4364012]
[1754132223599,16.78468397,163.29,163.26,0.06]
[1754132223807,22.88108517,163.29,163.26,0.06]
[1754132224020,0.66,163.28,163.26,0.06]
[1754132224186,43.0,163.27,163.26,0.06]
[1754132224382,0.66,163.29,163.26,5.4964012]
[1754132224622,0.66,163.31,163.28,5.4364012]
[1754132224924,0.66,163.31,163.3,5.4364012]
[1754132224925,43.0,163.31,163.3,5.4364012]
[1754132225080,49.09869734,163.31,163.3,5.4364012]
[1754132226522,6.09869734,163.31,163.3,6.0964012]
[1754132226823,43.0,163.33,163.3,6.0964012]
[1754132227027,43.0,163.33,163.32,5.4364012]
[1754132227211,49.09926266,163.33,163.32,5.4364012]
[1754132227425,43.0,163.33,163.32,5.4364012]
[1754132228222,13.801206,163.36,163.32,5.4364012]
[1754132228386,49.12106626,163.35,163.32,6.0964012]
[1754132228709,43.02,163.35,163.34,5.4364012]
[1754132228914,49.12122252,163.35,163.34,5.4364012]
[1754132229592,47.58760928,163.35,163.34,5.4364012]
[1754132229793,43.02,163.35,163.34,5.4364012]
[1754132230693,43.68,163.35,163.34,5.4364012]
[1754132230894,43.71,163.35,163.34,5.4364012]
[1754132232309,43.05,163.35,163.34,5.4364012]
[1754132232632,43.05,163.35,163.28,5.4364012]
[1754132232791,43.05,163.35,163.34,5.4364012]
[1754132234295,48.2796612,163.35,163.34,5.4364012]
[1754132236600,47.6196612,163.35,163.34,5.4364012]
[1754132237401,43.05,163.35,163.34,5.4364012]
[1754132237923,0.03,163.35,163.34,6.0964012]
[1754132240338,0.69,163.35,163.34,5.4364012]
[1754132240706,0.03,163.35,163.34,5.4364012]
[1754132242533,5.26621899,163.35,163.34,5.4364012]
[1754132242832,48.22621899,163.35,163.29,0.66]
[1754132243010,42.99,163.35,163.33,5.4364012]
[1754132243415,42.99,163.35,163.28,5.4364012]
[1754132243759,6.77045454,163.34,163.31,5.4364012]
[1754132244031,0.66,163.33,163.31,5.4364012]
[1754132244223,42.98,163.32,163.31,5.4364012]
[1754132244427,43.64,163.32,163.31,5.4364012]
[1754132244619,42.98,163.32,163.31,5.4364012]
[1754132246629,43.64,163.34,163.31,5.4364012]
[1754132246834,42.98,163.34,163.33,5.4364012]
[1754132247038,49.09264023,163.34,163.33,5.4364012]
[1754132247232,49.75264023,163.34,163.33,5.4364012]
[1754132247735,48.21906851,163.34,163.33,5.4364012]
[1754132250110,49.75258719,163.34,163.32,5.4364012]
[1754132250318,6.77258719,163.33,163.32,5.4364012]
[1754132251427,6.77258719,163.33,163.31,5.4364012]
[1754132251616,43.67,163.32,163.31,5.4364012]
[1754132252525,42.98,163.32,163.31,5.4364012]
[1754132252725,43.67,163.32,163.31,5.4364012]
[1754132254937,43.67,163.32,163.3,5.4364012]
[1754132255236,0.69,163.31,163.28,0.06]
[1754132255941,31.4364012,163.29,163.28,0.06]
[1754132256130,69.67,163.29,163.28,0.06]
[1754132256940,75.1064012,163.29,163.28,0.06]
[1754132257242,102.11819662,163.29,163.28,0.06]
[1754132258114,105.31475217,163.29,163.28,0.06]
[1754132259244,116.8752271,163.29,163.28,0.06]
[1754132259542,105.31475217,163.29,163.28,0.06]
[1754132264743,105.30426543,163.29,163.28,0.06]
[1754132270744,101.18693962,163.29,163.28,0.06]
[1754132272054,105.28736652,163.29,163.28,0.06]
[1754132272453,101.18693962,163.29,163.28,0.06]
[1754132273052,95.75053842,163.29,163.28,0.06]
[1754132273258,101.18693962,163.29,163.28,0.06]
[1754132275960,105.28500113,163.29,163.28,0.06]
[1754132278469,111.40907486,163.29,163.28,0.06]
[1754132278652,116.84547606,163.29,163.28,0.06]
[1754132278842,119.30149806,163.29,163.28,0.06]
[1754132281355,107.74102313,163.29,163.28,0.06]
[1754132281765,107.72972863,163.29,163.28,0.06]
[1754132282071,105.27370663,163.29,163.28,0.06]
[1754132284084,116.83418156,163.29,163.28,0.06]
[1754132284654,116.83717783,163.29,163.28,0.06]
[1754132284864,120.04192148,163.29,163.28,0.06]
[1754132285680,130.04192148,163.29,163.28,0.06]
[1754132287588,130.04201433,163.29,163.28,0.06]
[1754132287888,108.4815394,163.29,163.28,0.06]
[1754132288200,107.7915394,163.29,163.28,0.06]
[1754132288486,107.79580608,163.29,163.28,0.06]
[1754132293784,108.50580608,163.29,163.28,0.06]
[1754132294374,107.8055727,163.29,163.28,0.06]
[1754132294575,99.16669897,163.29,163.28,0.75]
[1754132294790,104.60310017,163.29,163.28,0.75]
[1754132295174,99.16669897,163.29,163.28,0.75]
[1754132295511,73.16669897,163.29,163.28,0.75]
[1754132296187,56.382015,163.29,163.28,6.1864012]
[1754132296376,53.18545945,163.29,163.28,6.1864012]
[1754132296704,49.08313126,163.29,163.28,6.1864012]
[1754132298198,49.08313126,163.29,163.28,0.06]
[1754132298380,53.20567529,163.29,163.28,0.06]
[1754132299205,53.20567529,163.29,163.28,0.75]
[1754132299414,53.20893524,163.29,163.28,0.75]
[1754132299617,53.20893524,163.29,163.28,6.1864012]
[1754132299904,53.20893524,163.29,163.28,0.75]
[1754132300084,49.08313126,163.29,163.28,0.75]
[1754132300513,53.21120132,163.29,163.28,0.06]
[1754132301813,69.99588529,163.29,163.28,0.06]
[1754132304513,53.21120132,163.29,163.28,6.1864012]
[1754132305804,53.21120132,163.29,163.28,0.75]
[1754132306110,53.21120132,163.29,163.28,0.06]
[1754132306478,49.08313126,163.29,163.28,0.06]
[1754132306686,65.86781523,163.29,163.28,0.06]
[1754132306883,69.9931676,163.29,163.28,0.06]
[1754132307775,53.20848363,163.29,163.28,0.06]
[1754132308513,53.20848363,163.29,163.28,0.75]
[1754132308714,49.08313126,163.29,163.28,0.75]
[1754132308876,49.08313126,163.29,163.28,0.06]
[1754132309489,49.09550216,163.29,163.28,0.06]
[1754132310680,49.09550216,163.29,163.28,0.75]
[1754132311123,49.09550216,163.29,163.28,0.06]
[1754132312009,76.15876076,163.29,163.28,0.06]
[1754132312214,70.72235956,163.29,163.28,0.06]
[1754132312398,76.15876076,163.29,163.28,0.06]
[1754132313913,70.72235956,163.29,163.28,0.06]
[1754132314161,76.15876076,163.29,163.28,0.06]
[1754132314528,75.43888661,163.29,163.28,0.06]
[1754132314733,70.00248541,163.29,163.28,0.06]
[1754132314930,53.21780144,163.29,163.28,0.06]
[1754132315262,49.09562801,163.29,163.28,0.06]
[1754132315840,6.11562801,163.29,163.28,6.1464012]
[1754132316015,49.07562801,163.29,163.28,6.1464012]
[1754132318625,6.11562801,163.29,163.28,6.1464012]
[1754132318835,49.07562801,163.29,163.28,6.1464012]
[1754132319222,47.54129373,163.29,163.28,6.1464012]
[1754132320351,49.07529485,163.29,163.28,6.1464012]
[1754132322651,42.97,163.3,163.28,6.1464012]
[1754132322959,0.03,163.3,163.29,6.0864012]
[1754132326027,42.97,163.3,163.28,0.06]
[1754132326230,43.69,163.3,163.29,5.4364012]
[1754132327130,43.69,163.3,163.28,0.06]
[1754132327339,43.69,163.3,163.29,5.4364012]
[1754132327522,48.26594095,163.3,163.29,5.4364012]
[1754132328164,48.26594095,163.3,163.28,5.4964012]
[1754132328454,42.97,163.3,163.29,5.4364012]
[1754132328653,47.54598793,163.3,163.29,5.4364012]
[1754132328952,48.26598793,163.3,163.29,5.4364012]
[1754132329853,47.54598793,163.3,163.29,5.4364012]
[1754132331258,49.07996791,163.3,163.29,5.4364012]
[1754132332269,49.79996791,163.3,163.29,5.4364012]
[1754132333826,49.07996791,163.3,163.29,5.4364012]
[1754132334559,49.07996791,163.3,163.29,6.0864012]
[1754132334731,49.07996791,163.3,163.29,5.4364012]
[1754132335264,49.07996791,163.3,163.28,0.06]
[1754132335565,0.03,163.3,163.29,5.4364012]
[1754132335770,6.14560533,163.3,163.29,5.4364012]
[1754132337761,6.14560533,163.3,163.29,6.0864012]
[1754132338456,0.03,163.3,163.29,6.0864012]
[1754132340636,0.03,163.3,163.29,5.4364012]
[1754132343363,0.03,163.3,163.29,6.1364012]
[1754132345047,0.03,163.3,163.29,5.4364012]
[1754132346763,0.03,163.3,163.29,6.1364012]
[1754132351384,0.03,163.3,163.29,5.4364012]
[1754132352584,0.00100689,163.3,163.29,5.4364012]
[1754132353363,0.71100689,163.3,163.29,5.4364012]
[1754132354262,0.00100689,163.3,163.29,5.4364012]
[1754132354568,0.71100689,163.3,163.28,0.06]
[1754132354878,0.00100689,163.3,163.29,5.4364012]
[1754132359894,0.71100689,163.3,163.29,5.4364012]
[1754132360581,0.71100689,163.3,163.28,0.06]
[1754132360991,6.12176925,163.29,163.28,0.06]
[1754132361176,6.12176925,163.29,163.28,5.4964012]
[1754132361384,6.83176925,163.29,163.28,5.4964012]
[1754132361886,6.12176925,163.29,163.28,5.4964012]
[1754132362076,6.83180964,163.29,163.28,5.4964012]
[1754132362596,6.83180964,163.29,163.28,0.06]
[1754132362784,6.83180964,163.29,163.28,5.4964012]
[1754132362986,6.83180964,163.29,163.28,0.06]
[1754132363201,6.83180964,163.29,163.28,5.4964012]
[1754132365204,6.12180964,163.29,163.28,5.4964012]
[1754132365801,6.83180964,163.29,163.28,5.4964012]
[1754132366099,6.12180964,163.29,163.28,5.4964012]
[1754132366902,6.83180964,163.29,163.28,5.4964012]
[1754132367479,6.83180964,163.29,163.28,0.06]
[1754132367802,10.96471667,163.29,163.28,0.06]